bitfinex-derivatives/quotes_SOLF0:USTF0_20250509
["timestamp","ask_amount","ask_price","bid_price","bid_amount"]
[1746780423976,1.19789171,166.96,166.72,518.7]
[1746780424480,18.54551413,166.93,166.72,518.7]
[1746780424680,18.54551413,166.88,166.72,518.7]
[1746780424882,2.0166,166.87,166.72,518.7]
[1746780425179,361.9653443,166.86,166.66,48.0]
[1746780425983,5.9986,166.68,166.66,48.0]
[1746780426177,357.0,166.83,166.66,48.0]
[1746780426482,892.07217485,166.82,166.66,48.0]
[1746780426673,891.0,166.81,166.66,48.0]
[1746780427074,1.07217485,166.8,166.66,48.0]
[1746780427575,5.9986,166.68,166.66,48.0]
[1746780427776,357.0,166.8,166.66,48.0]
[1746780427977,357.0,166.79,166.66,48.0]
[1746780428182,5.9989,166.67,166.66,48.0]
[1746780428386,18.54551413,166.74,166.39,8.58]
[1746780428677,2.92925776,166.73,166.43,536.94551413]
[1746780428984,1.07265776,166.72,166.43,536.94551413]
[1746780429284,1.07265776,166.72,166.48,18.54551413]
[1746780430283,5.9993,166.67,166.57,6.0025]
[1746780430592,5.7789,166.73,166.48,18.54551413]
[1746780431485,1.07301071,166.72,166.44,62.0]
[1746780431686,1.07301071,166.72,166.48,8.61]
[1746780432686,1.19968808,166.71,166.48,8.61]
[1746780433084,5.9989,166.68,166.6,6.0014]
[1746780433278,5.7789,166.73,166.48,9.61]
[1746780433487,3.9223,166.73,166.53,18.54551413]
[1746780433983,357.0,166.72,166.56,6.0026]
[1746780434179,357.0,166.72,166.49,18.54551413]
[1746780435286,357.0,166.71,166.53,18.54551413]
[1746780435687,6.0004,166.63,166.56,6.0028]
[1746780435886,357.0,166.7,166.48,35.55551413]
[1746780436087,6.0007,166.63,166.48,35.55551413]
[1746780436390,357.0,166.69,166.48,17.01]
[1746780436584,357.0,166.68,166.49,18.54551413]
[1746780436991,357.0,166.67,166.48,17.01]
[1746780437183,1411.6439,166.66,166.48,17.01]
[1746780437382,357.0,166.65,166.48,17.01]
[1746780437577,359.27338928,166.65,166.48,17.01]
[1746780437785,18.54551413,166.58,166.48,17.01]
[1746780437984,3.8732,166.57,166.48,17.01]
[1746780438186,4.94646927,166.57,166.48,17.01]
[1746780438386,3.8732,166.57,166.48,17.01]
[1746780439184,891.0,166.64,166.48,17.01]
[1746780439389,1.07340877,166.63,166.48,17.01]
[1746780439690,1.20012001,166.65,166.48,35.55551413]
[1746780439889,2.0439,166.66,166.48,35.55551413]
[1746780440092,875.6,166.75,166.48,35.55551413]
[1746780440387,896.834,166.74,166.48,35.55551413]
[1746780440689,897.906755,166.74,166.48,35.55551413]
[1746780440885,897.906755,166.74,166.53,18.54551413]
[1746780440886,896.834,166.74,166.53,18.54551413]
[1746780441193,896.834,166.74,166.48,17.01]
[1746780441382,896.834,166.74,166.55,18.54551413]
[1746780441586,896.834,166.74,166.55,518.72]
[1746780441787,362.834,166.74,166.56,18.54551413]
[1746780441990,537.9539,166.81,166.61,18.54551413]
[1746780442287,3.9539,166.81,166.61,18.54551413]
[1746780442487,3.9539,166.81,166.55,518.72]
[1746780442685,19.61801072,166.8,166.55,581.92084058]
[1746780443091,1.07249659,166.79,166.55,580.72]
[1746780443291,1.07249659,166.79,166.55,518.72]
[1746780443495,5.9989,166.68,166.55,518.72]
[1746780443694,1.07249659,166.79,166.55,537.26551413]
[1746780443893,1.07249659,166.8,166.55,537.26551413]
[1746780444398,1.07249659,166.8,166.55,518.72]
[1746780445994,18.54551413,166.76,166.55,518.72]
[1746780446391,1.07249659,166.75,166.55,518.72]
[1746780446788,892.9507,166.74,166.55,518.72]
[1746780446992,18.54551413,166.71,166.48,1.0]
[1746780447192,3.9738,166.7,166.48,1.0]
[1746780447393,18.54551413,166.66,166.48,1.0]
[1746780447692,892.07291536,166.69,166.48,1.0]
[1746780447900,1.07291536,166.65,166.48,1.0]
[1746780448196,16.88502358,166.63,166.48,1.0]
[1746780448498,6.0033,166.55,166.48,1.0]
[1746780448697,1.07291536,166.64,166.48,1.0]
[1746780448897,6.0037,166.54,166.48,9.64]
[1746780449199,1.9507,166.63,166.48,9.64]
[1746780449697,891.0,166.69,166.48,28.21292854]
[1746780449997,3.9738,166.7,166.49,580.72]
[1746780450197,1.0729562,166.69,166.49,580.72]
[1746780450402,1.0729562,166.69,166.49,518.72]
[1746780450602,6.0001,166.64,166.56,6.0027]
[1746780450787,3.9738,166.7,166.49,518.72]
[1746780452600,18.57292854,166.66,166.49,518.72]
[1746780452898,6.0051,166.5,166.48,9.64]
[1746780453100,2.0462,166.65,166.48,9.64]
[1746780453300,1.07346368,166.64,166.48,1.0]
[1746780454300,6.0011,166.62,166.54,6.0033]
[1746780454502,1.07346368,166.64,166.48,1.0]
[1746780454901,1.07346368,166.69,166.52,18.57292854]
[1746780455104,1.199904,166.68,166.53,518.76]
[1746780455292,1.199904,166.68,166.57,18.57292854]
[1746780455997,1.199904,166.68,166.57,27.21292854]
[1746780456205,1.9913,166.84,166.62,18.57292854]
[1746780456904,1.9913,166.84,166.58,18.57292854]
[1746780457104,1.07213004,166.83,166.58,18.57292854]
[1746780457402,1.07213004,166.83,166.59,62.0]
[1746780457904,1.07213004,166.83,166.59,63.20055225]
[1746780458499,5.9974,166.72,166.65,5.9994]
[1746780458697,1.07213004,166.83,166.59,63.20055225]
[1746780458901,1.07213004,166.83,166.59,1.20055225]
[1746780459201,5.9982,166.69,166.59,1.20055225]
[1746780459500,20.56422854,166.84,166.59,1.20055225]
[1746780459894,1.07228903,166.83,166.57,8.64]
[1746780460091,5.9971,166.73,166.58,18.57292854]
[1746780460304,357.0,166.82,166.58,18.57292854]
[1746780460604,357.0,166.81,166.63,18.57292854]
[1746780460802,358.07228903,166.81,166.63,18.57292854]
[1746780461100,357.0,166.81,166.63,18.57292854]
[1746780461892,357.0,166.81,166.64,62.0]
[1746780462091,357.0,166.81,166.65,518.58]
[1746780462297,5.9931,166.84,166.77,5.995]
[1746780462499,3.796,166.88,166.77,5.995]
[1746780462805,5.9921,166.87,166.81,5.9936]
[1746780463105,1.9046,166.94,166.73,18.57292854]
[1746780463403,3.10263522,166.94,166.73,18.57292854]
[1746780463598,1.07127889,166.93,166.73,18.57292854]
[1746780463903,5.9921,166.87,166.73,18.57292854]
[1746780464103,3.10263522,166.94,166.73,18.57292854]
[1746780464305,3.10263522,166.94,166.68,18.57292854]
[1746780464510,5.9929,166.84,166.78,5.9947]
[1746780464703,1.07132611,166.93,166.68,18.57292854]
[1746780465005,5.9931,166.84,166.78,5.995]
[1746780465200,1.07132611,166.93,166.68,18.57292854]
[1746780465401,3.10263522,166.94,166.73,18.57292854]
[1746780465798,1.19803522,166.94,166.78,18.57292854]
[1746780465994,1.19803522,166.94,166.79,518.4]
[1746780466607,5.9907,166.9,166.84,5.9925]
[1746780466905,1.19803522,166.94,166.79,518.4]
[1746780467107,5.9905,166.91,166.79,518.4]
[1746780467299,1.19803522,166.94,166.79,518.4]
[1746780467599,5.9904,166.91,166.79,518.4]
[1746780467807,1.19803522,166.94,166.79,518.4]
[1746780468198,5.9899,166.92,166.79,518.4]
[1746780468398,1.19803522,166.94,166.79,518.4]
[1746780468802,1.19803522,166.94,166.83,18.57292854]
[1746780469104,1.19803522,166.94,166.8,62.0]
[1746780469497,1.19803522,166.94,166.83,18.57292854]
[1746780469695,83.97477882,167.11,166.88,18.57292854]
[1746780469901,5.7946,167.12,166.88,18.57292854]
[1746780470102,1.07014276,167.1,166.93,18.57292854]
[1746780470302,1.07014276,167.1,167.04,5.9856]
[1746780470505,3.7772,167.12,167.04,5.9856]
[1746780470701,2.0174,167.18,167.0,18.57292854]
[1746780471301,2.0174,167.18,167.05,5.985]
[1746780471502,2.0174,167.18,167.0,18.57292854]
[1746780471503,2.0174,167.18,166.95,18.57292854]
[1746780472204,2.0174,167.18,166.94,518.04]
[1746780472605,2.0174,167.18,166.96,62.0]
[1746780472906,5.9849,167.07,167.01,5.9864]
[1746780473109,1.06965559,167.17,166.97,18.57292854]
[1746780473606,2.0174,167.18,167.04,5.9854]
[1746780473805,2.0174,167.18,166.97,18.57292854]
[1746780474100,2.0174,167.18,167.0,18.57292854]
[1746780474505,3.8108,167.21,167.0,18.57292854]
[1746780474702,1.9216,167.21,167.05,18.57292854]
[1746780474898,1.9718,167.28,167.06,517.78]
[1746780475205,11.9553,167.27,167.06,517.78]
[1746780475404,13.02463078,167.27,167.06,517.78]
[1746780475904,1.06933078,167.26,167.06,517.78]
[1746780476102,5.9799,167.2,167.06,523.7649]
[1746780476307,1.06933078,167.26,167.06,517.78]
[1746780476600,5.9748,167.28,167.08,18.57292854]
[1746780476802,4.0167,167.28,167.08,18.57292854]
[1746780477006,1.06904931,167.27,167.08,18.57292854]
[1746780477206,4.0167,167.28,167.08,18.57292854]
[1746780477708,5.9803,167.19,167.09,62.0]
[1746780478004,4.0167,167.28,167.09,62.0]
[1746780478513,4.0167,167.28,167.06,517.78]
[1746780478804,5.9799,167.21,167.06,517.78]
[1746780479008,4.0167,167.28,167.08,18.57292854]
[1746780479211,4.0167,167.28,167.06,517.78]
[1746780479507,1.9718,167.28,167.11,18.57292854]
[1746780479707,5.9785,167.24,167.11,18.57292854]
[1746780479906,1.9718,167.28,167.11,18.57292854]
[1746780480311,1.9718,167.28,167.17,5.9809]
[1746780480612,1.9718,167.28,167.11,18.57292854]
[1746780480812,1.9718,167.28,167.07,1.19710301]
[1746780481203,5.9806,167.18,167.07,1.19710301]
[1746780481409,358.06907195,167.27,167.07,1.19710301]
[1746780481606,357.0,167.26,167.07,1.19710301]
[1746780481809,358.06907195,167.26,167.07,1.19710301]
[1746780482008,3.09247195,167.25,167.07,1.19710301]
[1746780482308,18.57292854,167.23,167.07,1.19710301]
[1746780482511,894.05847195,167.22,167.07,1.19710301]
[1746780482813,18.57292854,167.18,166.98,225.50440741]
[1746780483112,3.02747195,167.17,166.98,225.50440741]
[1746780483313,5.9844,167.08,166.98,225.50440741]
[1746780483513,360.09247195,167.16,166.98,234.15440741]
[1746780483702,357.0,167.15,166.98,234.15440741]
[1746780483901,3.09247195,167.16,166.98,234.15440741]
[1746780483902,358.06907195,167.14,166.98,234.15440741]
[1746780484114,375.57292854,167.13,166.98,8.65]
[1746780484300,5.9874,166.99,166.98,8.65]
[1746780484511,357.0,167.11,166.98,8.65]
[1746780484704,357.0,167.1,166.98,8.65]
[1746780485215,2.0234,167.16,166.98,8.65]
[1746780485407,2.0234,167.16,166.98,27.22292854]
[1746780485613,2.0234,167.16,166.98,16.47]
[1746780485808,5.986,167.04,166.98,16.47]
[1746780486214,891.0,167.15,166.98,16.47]
[1746780486410,891.0,167.15,167.0,5.9871]
[1746780486806,5.9838,167.1,166.98,16.47]
[1746780487015,1.0698216,167.14,166.98,16.47]
[1746780487216,891.0,167.15,166.98,16.47]
[1746780487417,891.0,167.15,167.03,5.986]
[1746780487607,891.0,167.15,166.98,16.47]
[1746780488117,2.0092,167.14,166.98,16.47]
[1746780488314,2.0234,167.16,166.98,16.47]
[1746780489712,1.06985336,167.15,166.98,16.47]
[1746780490720,1.06985336,167.15,167.02,5.9862]
[1746780490920,358.06985336,167.15,167.02,517.3]
[1746780491112,357.0,167.15,167.02,517.3]
[1746780491312,5.9821,167.14,167.08,5.9842]
[1746780491612,357.0,167.15,167.02,517.3]
[1746780491819,358.9584,167.17,167.02,517.3]
[1746780492011,357.0,167.17,167.02,517.3]
[1746780492317,357.0,167.17,167.03,62.0]
[1746780492616,357.0,167.17,167.02,517.3]
[1746780492818,357.0,167.2,167.02,517.3]
[1746780493018,357.0,167.2,167.03,1.1737]
[1746780493219,5.9807,167.18,167.12,5.9827]
[1746780493516,357.0,167.2,167.03,1.1737]
[1746780494716,357.0,167.2,167.05,18.57292854]
[1746780494913,5.9809,167.18,167.12,5.9826]
[1746780495122,357.0,167.2,167.05,18.57292854]
[1746780495624,362.9799,167.2,167.14,5.9818]
[1746780495819,357.0,167.32,167.15,517.24]
[1746780496119,535.9316,167.35,167.15,517.24]
[1746780496614,5.9764,167.3,167.15,535.81292854]
[1746780496811,1.9316,167.35,167.16,1.1724]
[1746780497013,357.0,167.34,167.16,1.1724]
[1746780497319,357.0,167.33,167.15,517.24]
[1746780497614,360.02431169,167.32,167.15,517.24]
[1746780498018,3.12271169,167.31,167.15,517.24]
[1746780498207,2.054,167.31,167.15,517.24]
[1746780498408,1.9316,167.35,167.15,535.81292854]
[1746780498609,1.9316,167.35,167.2,18.57292854]
[1746780498811,5.9738,167.37,167.3,5.9763]
[1746780499017,1.9556,167.4,167.2,18.57292854]
[1746780499018,1.9556,167.4,167.21,1.1724]
[1746780499318,5.9728,167.4,167.32,5.9755]
[1746780499517,1.9316,167.42,167.26,62.0]
[1746780499907,1.9316,167.42,167.27,517.06]
[1746780500212,1.9556,167.48,167.27,535.63292854]
[1746780500412,1.9556,167.48,167.34,5.9746]
[1746780500610,1.9556,167.48,167.27,535.63292854]
[1746780500807,1.9556,167.48,167.27,536.8286002]
[1746780501013,5.9703,167.47,167.38,5.9733]
[1746780501308,2.054,167.51,167.31,18.57292854]
[1746780501524,2.054,167.51,167.32,1.1679]
[1746780502018,5.9699,167.49,167.32,1.1679]
[1746780502216,2.054,167.51,167.32,1.1679]
[1746780502517,5.9695,167.5,167.41,5.9723]
[1746780502721,1.9684,167.55,167.36,18.57292854]
[1746780503018,5.9678,167.54,167.37,62.0]
[1746780503214,2.0124,167.58,167.41,18.57292854]
[1746780503517,2.0124,167.58,167.42,516.64]
[1746780503720,5.9674,167.56,167.42,516.64]
[1746780504016,2.0124,167.58,167.42,516.64]
[1746780504421,5.9671,167.56,167.42,525.29]
[1746780504718,2.0124,167.58,167.42,525.29]
[1746780505116,1.06713196,167.57,167.42,525.29]
[1746780506523,5.9723,167.43,167.42,8.65]
[1746780506718,893.0124,167.58,167.42,8.65]
[1746780507220,1.06737927,167.57,167.42,8.65]
[1746780507620,5.9702,167.49,167.42,8.65]
[1746780507821,1.06737927,167.57,167.42,8.65]
[1746780508023,893.0124,167.58,167.42,8.65]
[1746780508321,18.57292854,167.55,167.42,8.65]
[1746780508520,892.06752555,167.57,167.42,8.65]
[1746780508714,1.06752555,167.56,167.42,8.65]
[1746780509126,5.9705,167.49,167.42,8.65]
[1746780509421,891.0,167.57,167.42,8.65]
[1746780509820,1.0672186,167.56,167.42,8.65]
[1746780510417,375.57292854,167.55,167.42,8.65]
[1746780510623,375.57292854,167.55,167.42,5.5737]
[1746780510814,891.0,167.54,167.32,516.46]
[1746780511020,891.0,167.53,167.32,516.46]
[1746780511317,892.0672186,167.53,167.32,516.46]
[1746780511719,1.0672186,167.52,167.32,516.46]
[1746780512115,891.0,167.51,167.32,516.46]
[1746780512321,891.0,167.51,167.28,1.8927]
[1746780512516,18.57292854,167.48,167.28,1.8927]
[1746780512720,1409.3045,167.47,167.27,1.19567166]
[1746780512925,1412.3083186,167.47,167.27,1.19567166]
[1746780513129,18.57292854,167.42,167.27,1.19567166]
[1746780513330,5.9758,167.34,167.27,7.17367166]
[1746780513627,892.0672186,167.41,167.27,1.19567166]
[1746780513823,5.9751,167.36,167.29,5.9773]
[1746780514126,520.2411,167.47,167.28,1.8927]
[1746780514519,1.06815241,167.4,167.28,1.8927]
[1746780514929,1.06815241,167.46,167.28,1.8927]
[1746780515226,520.2411,167.47,167.28,1.8927]
[1746780515726,1.06781436,167.46,167.3,16.70816329]
[1746780515927,2.93661436,167.46,167.3,16.70816329]
[1746780516131,2.93661436,167.46,167.35,5.9751]
[1746780516325,2.93661436,167.46,167.28,18.60086329]
[1746780516526,16.70816329,167.45,167.28,1.8927]
[1746780516725,17.77617684,167.45,167.29,5.9773]
[1746780516922,1.06801355,167.44,167.28,1.8927]
[1746780517128,17.77617684,167.44,167.28,1.8927]
[1746780517529,1.06801355,167.44,167.29,16.70816329]
[1746780517931,1.06801355,167.43,167.29,16.70816329]
[1746780518131,1.8688,167.46,167.29,16.70816329]
[1746780518329,1.06783602,167.45,167.29,16.70816329]
[1746780518628,1.8688,167.46,167.28,1.8927]
[1746780518829,5.973,167.41,167.34,5.9755]
[1746780519030,16.70816329,167.44,167.28,1.8927]
[1746780519420,1.06806969,167.43,167.28,1.8927]
[1746780519932,1.8688,167.46,167.28,1.8927]
[1746780520135,16.70816329,167.43,167.25,516.34]
[1746780520531,5.9758,167.34,167.27,5.978]
[1746780520826,891.0,167.45,167.3,16.70816329]
[1746780521023,357.0,167.45,167.31,2.0176]
[1746780521429,357.0,167.6,167.35,16.70816329]
[1746780521736,2.0254,167.53,167.35,16.70816329]
[1746780521928,1.876,167.52,167.35,16.70816329]
[1746780522232,1.06767814,167.51,167.32,16.70816329]
[1746780522435,1.06767814,167.51,167.31,2.0176]
[1746780522436,1.06767814,167.51,167.36,16.70816329]
[1746780522627,1.06767814,167.51,167.4,16.70816329]
[1746780522822,1.876,167.52,167.41,2.0176]
[1746780523235,16.70504426,167.51,167.29,1.1619]
[1746780523434,16.70504426,167.51,167.34,16.70504426]
[1746780523631,5.9712,167.46,167.39,5.9737]
[1746780523830,1.876,167.52,167.39,5.9737]
[1746780524031,5.9717,167.45,167.38,5.9741]
[1746780524336,1.876,167.52,167.34,16.70504426]
[1746780524634,16.70504426,167.51,167.3,2.0176]
[1746780524932,1.876,167.52,167.3,2.0176]
[1746780525123,1.06766269,167.5,167.3,2.0176]
[1746780525326,16.70504426,167.45,167.29,1.19552872]
[1746780525523,1.9685,167.44,167.3,1.8675]
[1746780525736,1.9685,167.44,167.29,1.19552872]
[1746780525935,1.8969,167.43,167.29,1.19552872]
[1746780526235,1.06803154,167.42,167.29,1.19552872]
[1746780526436,2.95933154,167.42,167.29,1.19552872]
[1746780526737,1.8913,167.42,167.29,1.19552872]
[1746780526932,1.8913,167.42,167.28,5.9776]
[1746780527142,1.06806823,167.41,167.26,1.8675]
[1746780527335,5.9747,167.37,167.29,5.9769]
[1746780527535,1.8913,167.42,167.26,1.8675]
[1746780527930,1.06806268,167.41,167.26,1.8675]
[1746780528237,17.77310694,167.41,167.25,516.34]
[1746780528429,1.06806268,167.41,167.25,516.34]
[1746780528623,16.70504426,167.39,167.22,1.8601]
[1746780528832,16.70504426,167.39,167.18,16.70504426]
[1746780529134,1.06806268,167.38,167.19,1.8601]
[1746780529532,16.70504426,167.37,167.19,1.8601]
[1746780529734,5.9762,167.33,167.26,5.9781]
[1746780529939,16.70504426,167.4,167.19,1.8601]
[1746780530128,16.70504426,167.4,167.19,18.56514426]
[1746780530329,1.06832805,167.39,167.19,1.8601]
[1746780530530,1.06832805,167.39,167.2,16.70504426]
[1746780530839,1.06832805,167.39,167.24,16.70504426]
[1746780531134,1.06832805,167.41,167.24,16.70504426]
[1746780531334,1.06832805,167.41,167.19,1.8601]
[1746780531533,1.06832805,167.41,167.25,8.0]
[1746780531735,5.9741,167.38,167.32,5.9762]
[1746780531935,1.06832805,167.41,167.25,8.0]
[1746780532129,1.8913,167.42,167.25,8.0]
[1746780532332,1.8913,167.42,167.3,5.9766]
[1746780532633,1.8913,167.42,167.25,8.0]
[1746780533038,1.06805204,167.41,167.25,8.0]
[1746780533532,1.8913,167.42,167.25,8.0]
[1746780533927,1.8913,167.42,167.25,24.70504426]
[1746780534131,1.8913,167.42,167.29,16.70504426]
[1746780534431,1.8913,167.42,167.3,1.9262]
[1746780534834,1.8913,167.42,167.37,5.9744]
[1746780535037,1.8913,167.42,167.3,1.9262]
[1746780535234,1.9685,167.44,167.3,1.9262]
[1746780535429,1.9685,167.44,167.4,5.973]
[1746780535632,2.0105,167.49,167.33,16.70504426]
[1746780535830,1.19417243,167.48,167.3,1.9262]
[1746780536038,1.19417243,167.48,167.38,5.974]
[1746780536239,1.19417243,167.48,167.3,1.9262]
[1746780536436,1.19417243,167.48,167.34,16.70504426]
[1746780536827,16.70504426,167.46,167.3,1.9262]
[1746780537139,3.04703419,167.45,167.3,1.9262]
[1746780537537,5.9713,167.46,167.31,2.2217664]
[1746780537730,1.19417243,167.48,167.32,2.2217664]
[1746780538034,1.19417243,167.48,167.31,1.49400987]
[1746780538035,16.70504426,167.45,167.3,1.9262]
[1746780538237,1.06766077,167.47,167.28,516.46]
[1746780538432,16.70504426,167.43,167.28,516.46]
[1746780538640,1.9794,167.42,167.28,522.4375]
[1746780538829,18.68444426,167.42,167.28,516.46]
[1746780539033,5.977,167.3,167.25,8.0]
[1746780539237,16.70504426,167.38,167.25,8.0]
[1746780539433,1.8685,167.37,167.25,8.0]
[1746780539737,16.70504426,167.34,167.25,8.0]
[1746780539935,1.9638,167.33,167.25,8.0]
[1746780540540,5.9796,167.23,167.16,6.86268705]
[1746780540739,1.06875734,167.32,167.17,1.19638691]
[1746780541039,1.9887,167.3,167.17,1.19638691]
[1746780541240,1.06875734,167.29,167.17,1.19638691]
[1746780541433,16.70504426,167.28,167.17,1.19638691]
[1746780541829,358.06875734,167.27,167.17,1.19638691]
[1746780542035,16.70504426,167.24,167.17,1.19638691]
[1746780542340,358.9921,167.23,167.05,8.75088705]
[1746780542537,1.06875734,167.22,167.05,8.75088705]
[1746780543131,1.06875734,167.22,167.06,0.07]
[1746780543537,16.70504426,167.2,167.06,0.07]
[1746780543835,16.77859484,167.14,167.06,0.07]
[1746780544039,1.9921,167.13,167.06,0.07]
[1746780544839,5.9849,167.08,167.06,0.07]
[1746780545040,357.0,167.12,167.02,1.0]
[1746780545233,18.70359484,167.07,167.02,1.0]
[1746780545435,18.70359484,167.07,166.92,1.8998]
[1746780545635,1.9549,167.06,166.92,1.8998]
[1746780545834,18.73349484,167.06,166.92,1.8998]
[1746780546243,18.73349484,167.06,166.91,27.55028666]
[1746780546446,1.0704057,167.05,166.89,1.8998]
[1746780546641,16.77859484,167.02,166.89,1.8998]
[1746780546841,5.9888,166.97,166.89,1.8998]
[1746780547047,16.77859484,167.02,166.89,1.8998]
[1746780547346,5.9868,167.03,166.93,5.99]
[1746780547542,1.9823,167.04,166.89,1.8998]
[1746780548843,1.9823,167.04,166.83,27.55028666]
[1746780548844,18.79119223,167.04,166.83,27.55028666]
[1746780549050,1.07097937,167.03,166.83,27.55028666]
[1746780549440,16.80889223,167.0,166.83,27.55028666]
[1746780549639,16.80889223,167.0,166.82,1.9506]
[1746780549640,5.9895,166.95,166.87,5.9922]
[1746780549847,16.80889223,166.99,166.82,1.9506]
[1746780550047,1.9823,167.04,166.83,16.80889223]
[1746780550255,16.80889223,167.02,166.83,16.80889223]
[1746780550447,1.07085616,167.01,166.83,16.80889223]
[1746780550649,16.80889223,166.98,166.78,1.8507]
[1746780550952,16.80889223,166.94,166.79,1.9506]
[1746780551249,3.8096,166.93,166.79,1.9506]
[1746780551438,16.80889223,166.9,166.73,517.08]
[1746780551638,5.7558,166.93,166.73,517.08]
[1746780551639,5.9931,166.85,166.73,517.08]
[1746780552048,22.56469223,166.93,166.73,517.08]
[1746780552251,22.56469223,166.93,166.75,16.80889223]
[1746780552445,1.07131268,166.92,166.75,16.80889223]
[1746780552750,16.80889223,166.91,166.73,517.08]
[1746780553350,1.0715427,166.9,166.76,5.9963]
[1746780553646,1.0715427,166.9,166.73,517.08]
[1746780553845,5.9926,166.87,166.73,517.08]
[1746780554045,1.0715427,166.9,166.73,533.88889223]
[1746780554248,16.80889223,166.87,166.73,517.08]
[1746780554548,16.80889223,166.87,166.72,1.9257]
[1746780554549,16.80889223,166.88,166.63,517.54]
[1746780554747,16.80889223,166.83,166.64,18.80419223]
[1746780555048,3.9883,166.82,166.64,18.80419223]
[1746780555752,1.9678,166.82,166.68,16.80889223]
[1746780555956,1.9678,166.82,166.65,62.0]
[1746780556145,1.9678,166.82,166.64,1.9953]
[1746780556344,1.9678,166.82,166.64,18.80419223]
[1746780556750,3.8215,166.82,166.64,1.9953]
[1746780556947,3.8215,166.82,166.67,16.80889223]
[1746780557152,3.8215,166.82,166.65,16.80889223]
[1746780557650,20.63039223,166.82,166.64,1.9953]
[1746780557953,16.80889223,166.81,166.64,1.9953]
[1746780558153,3.8215,166.82,166.64,1.9953]
[1746780558346,3.8215,166.82,166.66,16.80889223]
[1746780558755,3.8215,166.82,166.64,1.9953]
[1746780558756,1.9678,166.82,166.7,16.80889223]
[1746780559552,7.962,166.82,166.75,5.9963]
[1746780559852,1.9678,166.82,166.71,16.80889223]
[1746780560051,1.9678,166.82,166.68,1.0]
[1746780560251,891.0,166.86,166.7,16.80889223]
[1746780560446,907.80889223,166.86,166.68,1.0]
[1746780560651,1.0717512,166.85,166.68,1.0]
[1746780561243,17.88064343,166.85,166.68,1.0]
[1746780561450,16.80889223,166.85,166.68,1.0]
[1746780561648,5.9959,166.78,166.7,5.9981]
[1746780561846,16.80889223,166.81,166.68,1.0]
[1746780562043,360.8829,166.8,166.68,1.0]
[1746780562251,357.0,166.79,166.68,1.0]
[1746780562555,373.80889223,166.78,166.68,1.0]
[1746780562743,357.0,166.77,166.68,1.0]
[1746780563148,357.0,166.76,166.68,1.0]
[1746780563351,5.9988,166.69,166.68,1.0]
[1746780563751,16.80889223,166.74,166.57,1.8964]
[1746780563955,357.0,166.75,166.57,1.8964]
[1746780564149,357.0,166.75,166.61,16.80889223]
[1746780564453,1.879,166.79,166.65,16.80889223]
[1746780564656,1.879,166.79,166.66,1.8964]
[1746780564853,7.9783,166.8,166.69,16.80889223]
[1746780565157,1.9832,166.8,166.69,16.80889223]
[1746780565355,1.9832,166.8,166.67,520.033]
[1746780566556,5.9977,166.73,166.68,5.9991]
[1746780566754,1.9832,166.8,166.66,1.8964]
[1746780567051,1.9832,166.8,166.58,520.113]
[1746780567052,16.80889223,166.78,166.58,520.113]
[1746780567353,1.07232199,166.77,166.58,518.1]
[1746780567651,16.80889223,166.71,166.51,16.80889223]
[1746780567858,3.8924,166.7,166.51,16.80889223]
[1746780568057,5.7992,166.7,166.51,16.80889223]
[1746780568351,1.07232199,166.69,166.51,16.80889223]
[1746780568558,16.80889223,166.68,166.5,2.0288]
[1746780568855,16.80889223,166.69,166.5,2.0288]
[1746780569158,6.0021,166.6,166.53,6.0042]
[1746780569355,16.80889223,166.67,166.5,2.0288]
[1746780569755,357.0,166.69,166.5,2.0288]